bitfinex/quotes_SOLUSD_20250830
["timestamp","ask_amount","ask_price","bid_price","bid_amount"]
[1756564784671,1e-08,199.81,199.8,130.31390155]
[1756564785366,1e-08,199.81,199.8,131.00390155]
[1756564785669,1e-08,199.81,199.8,126.221275]
[1756564785869,1e-08,199.81,199.8,131.00390155]
[1756564789151,1e-08,199.81,199.8,91.39390155]
[1756564789475,1e-08,199.81,199.8,125.531275]
[1756564789771,1e-08,199.81,199.8,128.56589685]
[1756564791858,1e-08,199.81,199.8,129.25589685]
[1756564793274,1e-08,199.81,199.8,129.28589685]
[1756564795586,1e-08,199.81,199.8,128.59589685]
[1756564796161,1e-08,199.81,199.8,128.57589685]
[1756564796362,1e-08,199.81,199.8,125.541275]
[1756564796574,1e-08,199.81,199.8,126.231275]
[1756564796783,1e-08,199.81,199.8,129.26589685]
[1756564798405,1e-08,199.81,199.8,127.25962685]
[1756564798780,1e-08,199.81,199.8,129.26579585]
[1756564799106,1e-08,199.81,199.8,251.26579585]
[1756564801983,0.06,199.83,199.82,26.0]
[1756564802188,0.06,199.83,199.82,67.93462185]
[1756564802507,0.06,199.83,199.82,73.6591259]
[1756564802704,0.06,199.83,199.82,75.6650939]
[1756564803385,0.06,199.83,199.82,74.9450939]
[1756564803711,0.06,199.83,199.82,33.01047205]
[1756564803897,0.06,199.83,199.82,74.9450939]
[1756564804914,0.06,199.83,199.82,48.9450939]
[1756564805515,0.06,199.83,199.82,49.6650939]
[1756564805713,0.06,199.83,199.82,46.63047205]
[1756564805917,0.06,199.83,199.82,49.6650939]
[1756564806597,0.06,199.83,199.82,129.2650939]
[1756564808387,0.06,199.83,199.82,90.3650939]
[1756564808595,0.06,199.83,199.82,129.2450939]
[1756564808909,0.06,199.83,199.82,126.21047205]
[1756564809205,0.06,199.83,199.82,129.2450939]
[1756564809991,0.06,199.83,199.82,128.5250939]
[1756564811494,0.06,199.83,199.81,5.00475375]
[1756564811495,0.25,199.83,199.81,5.00475375]
[1756564811710,0.25,199.83,199.82,38.88]
[1756564812515,0.06,199.83,199.82,42.63462185]
[1756564813310,0.06,199.83,199.82,46.83222285]
[1756564814008,0.06,199.83,199.82,47.6391259]
[1756564814188,0.06,199.83,199.82,49.6451949]
[1756564815403,0.06,199.83,199.82,129.2451949]
[1756564817332,0.1,199.85,199.84,26.0]
[1756564817497,0.1,199.85,199.84,108.63462185]
[1756564817697,0.1,199.85,199.84,148.23462185]
[1756564817914,0.1,199.85,199.84,84.6040032]
[1756564818121,0.1,199.85,199.84,123.4840032]
[1756564821325,0.1,199.85,199.84,43.8840032]
[1756564821831,0.1,199.85,199.84,44.6040032]
[1756564822027,0.1,199.85,199.84,47.63862505]
[1756564822730,0.1,199.85,199.84,51.83622505]
[1756564825530,3.85318498,199.85,199.84,51.83622505]
[1756564826538,3.85318498,199.85,199.84,51.81622505]
[1756564826736,3.85318498,199.85,199.84,12.23622505]
[1756564827035,3.85318498,199.85,199.84,51.09622505]
[1756564827214,3.85318498,199.85,199.84,130.69622505]
[1756564827637,3.85318498,199.85,199.84,88.8016032]
[1756564827805,3.85318498,199.85,199.84,123.4640032]
[1756564828009,3.85318498,199.85,199.82,3.03462185]
[1756564828010,7.07780683,199.85,199.82,84.60431084]
[1756564828240,3.94318498,199.84,199.83,43.0576]
[1756564828417,3.94318498,199.84,199.83,38.86]
[1756564828816,3.94318498,199.84,199.82,88.89191184]
[1756564829013,3.75318498,199.83,199.82,0.03]
[1756564829227,3.94318498,199.83,199.82,38.89]
[1756564829429,3.75318498,199.83,199.82,38.89]
[1756564829723,3.75318498,199.83,199.82,43.89450405]
[1756564830223,3.75351903,199.83,199.82,43.89450405]
[1756564830724,3.75351903,199.83,199.82,38.89]
[1756564831040,3.75351903,199.83,199.82,43.89450405]
[1756564831236,3.75351903,199.83,199.82,44.60450405]
[1756564831540,3.75351903,199.83,199.82,43.89450405]
[1756564832213,3.75351903,199.83,199.82,5.03450405]
[1756564832417,3.75351903,199.83,199.82,43.89450405]
[1756564834523,0.1,199.85,199.84,26.0]
[1756564834723,0.06,199.87,199.84,64.86]
[1756564834946,0.06,199.87,199.85,0.71]
[1756564835151,0.06,199.87,199.86,41.89462185]
[1756564835317,0.06,199.87,199.86,43.90028785]
[1756564835519,0.06,199.87,199.86,44.61028785]
[1756564835728,0.06,199.87,199.86,49.6137903]
[1756564836248,0.06,199.87,199.86,7.00916845]
[1756564836451,0.73,199.87,199.86,45.86916845]
[1756564837137,0.06,199.87,199.86,49.6137903]
[1756564837461,0.06,199.87,199.86,51.31689794]
[1756564837753,0.06,199.87,199.86,46.57916845]
[1756564838055,0.06,199.87,199.86,50.60689794]
[1756564838348,0.06,199.87,199.86,51.31689794]
[1756564839649,0.06,199.87,199.86,45.86916845]
[1756564839832,0.06,199.87,199.86,51.31689794]
[1756564840230,0.06,199.87,199.86,46.57916845]
[1756564840447,0.06,199.87,199.86,45.86916845]
[1756564840625,0.06,199.87,199.86,12.45689794]
[1756564840827,0.06,199.87,199.86,51.31689794]
[1756564841023,0.06,199.87,199.86,12.45689794]
[1756564841249,0.06,199.87,199.86,7.00916845]
[1756564841449,0.06,199.87,199.86,50.60689794]
[1756564841761,0.06,199.87,199.86,51.31689794]
[1756564842362,0.06,199.87,199.86,50.60689794]
[1756564843332,0.06,199.87,199.86,51.31689794]
[1756564845071,0.06,199.87,199.86,130.91689794]
[1756564845668,0.73,199.87,199.86,7.00916845]
[1756564845847,0.73,199.87,199.86,38.84]
[1756564846372,0.06,199.87,199.86,38.84]
[1756564847065,0.73,199.87,199.86,38.84]
[1756564847459,0.06,199.87,199.86,38.84]
[1756564847963,0.06,199.87,199.86,43.84350245]
[1756564848349,0.73,199.87,199.86,43.84350245]
[1756564848667,0.06,199.87,199.86,43.84350245]
[1756564849566,0.06,199.87,199.86,5.00350245]
[1756564849766,0.06,199.87,199.86,43.84350245]
[1756564850063,5.46772949,199.87,199.86,38.84]
[1756564850567,0.06,199.87,199.84,4.73772949]
[1756564850767,0.06,199.87,199.85,38.84]
[1756564850967,0.06,199.87,199.85,39.55]
[1756564851659,0.06,199.87,199.85,38.84]
[1756564852069,0.06,199.87,199.86,5.00350245]
[1756564853672,0.73,199.87,199.85,43.84370648]
[1756564853963,0.06,199.87,199.85,43.84370648]
[1756564854167,0.73,199.87,199.85,43.84370648]
[1756564854366,0.06,199.87,199.85,43.84370648]
[1756564855269,0.06,199.87,199.85,44.55370648]
[1756564855737,0.06,199.87,199.85,43.84370648]
[1756564857143,0.06,199.87,199.86,38.84]
[1756564859254,0.06,199.87,199.86,43.84350245]
[1756564860689,0.06,199.87,199.86,44.55350245]
[1756564860975,0.06,199.87,199.86,43.84350245]
[1756564861972,3.75344617,199.87,199.86,38.84]
[1756564862366,3.09344617,199.87,199.86,38.84]
[1756564863046,0.06,199.87,199.86,38.84]
[1756564863249,3.09344617,199.87,199.86,38.84]
[1756564864076,3.75344617,199.87,199.86,38.84]
[1756564864573,3.09344617,199.87,199.86,38.84]
[1756564865560,3.09344617,199.87,199.85,0.03]
[1756564865762,0.06,199.87,199.86,38.84]
[1756564866852,29.75344617,199.87,199.85,0.03]
[1756564867069,3.03344617,199.86,199.85,0.03]
[1756564867471,26.66,199.86,199.85,0.03]
[1756564867670,29.69344617,199.86,199.85,0.03]
[1756564867868,43.28904018,199.86,199.85,0.03]
[1756564868196,13.59559401,199.85,199.83,0.03]
[1756564868479,20.84672154,199.84,199.83,0.03]
[1756564868786,24.30011838,199.84,199.83,0.03]
[1756564869180,23.51386138,199.84,199.83,0.03]
[1756564869382,25.22464768,199.84,199.83,0.03]
[1756564869755,21.00690148,199.84,199.83,0.03]
[1756564870256,6.75130747,199.84,199.83,0.03]
[1756564870477,4.74423247,199.84,199.83,0.03]
[1756564871584,4.74423247,199.84,199.83,0.71]
[1756564871891,4.74423247,199.84,199.83,0.03]
[1756564872773,5.40423247,199.84,199.83,0.03]
[1756564873381,10.40823567,199.84,199.83,0.03]
[1756564875468,36.40823567,199.84,199.83,0.03]
[1756564875774,42.62838097,199.84,199.83,0.03]
[1756564876193,38.41530967,199.84,199.83,0.03]
[1756564876488,42.62838097,199.84,199.83,0.03]
[1756564876685,30.74423247,199.84,199.83,0.03]
[1756564876992,4.74423247,199.84,199.83,0.03]
[1756564879002,13.59559401,199.83,199.82,0.03]
[1756564879175,26.0,199.81,199.8,0.03]
[1756564879505,18.60059901,199.8,199.79,0.03]
[1756564879671,27.95357453,199.8,199.79,0.03]
[1756564879874,27.29357453,199.8,199.79,0.03]
[1756564880696,4.74423247,199.8,199.79,0.03]
[1756564881583,9.48846494,199.8,199.79,0.03]
[1756564883404,15.15346994,199.8,199.79,0.03]
[1756564884010,28.74906395,199.8,199.79,0.03]
[1756564887809,28.08906395,199.8,199.79,0.03]
[1756564888224,2.61257029,199.81,199.79,0.71]
[1756564888395,2.61257029,199.81,199.79,0.03]
[1756564888396,4.74423247,199.8,199.79,0.03]
[1756564889006,4.74423247,199.8,199.79,0.71]
[1756564890006,13.59559401,199.84,199.79,0.71]
[1756564890387,4.74423247,199.8,199.79,0.71]
[1756564890582,13.59559401,199.84,199.79,0.71]
[1756564890815,4.74423247,199.81,199.79,0.71]
[1756564891185,4.74423247,199.81,199.8,0.68]
[1756564892306,13.59559401,199.84,199.8,5.68496638]
[1756564892496,4.74423247,199.83,199.81,0.68]
[1756564893295,2.67160064,199.85,199.81,0.68]
[1756564893500,4.74423247,199.83,199.81,5.00466344]
[1756564893706,4.74423247,199.83,199.82,0.68]
[1756564894993,4.74423247,199.83,199.81,5.00466344]
[1756564894994,4.74423247,199.83,199.79,5.71506565]
[1756564895214,2.67160064,199.85,199.79,5.71506565]
[1756564895215,4.74423247,199.81,199.8,0.68]
[1756564895614,4.74423247,199.81,199.8,5.685005]
[1756564895925,4.74423247,199.81,199.79,0.03]
[1756564896093,4.74423247,199.8,199.79,0.03]
[1756564897614,19.03982648,199.8,199.79,0.03]
[1756564897818,23.78405895,199.8,199.79,0.03]
[1756564900697,28.78906395,199.8,199.79,0.03]
[1756564901705,28.08906395,199.8,199.79,0.03]
[1756564902239,28.78906395,199.8,199.79,0.03]
[1756564902411,18.33982648,199.8,199.79,0.03]
[1756564903508,23.78405895,199.8,199.79,0.03]
[1756564904502,28.78906395,199.8,199.79,0.03]
[1756564904937,32.98713068,199.8,199.79,0.03]
[1756564907410,28.78906395,199.8,199.79,0.03]
[1756564907836,32.99412754,199.8,199.79,0.03]
[1756564908434,28.78906395,199.8,199.79,0.03]
[1756564908807,28.78906395,199.8,199.78,0.03]
[1756564908808,13.59559401,199.79,199.78,0.03]
[1756564909128,13.59559401,199.79,199.77,0.03]
[1756564909129,57.19982648,199.79,199.77,0.03]
[1756564909314,5.44423247,199.78,199.77,0.03]
[1756564910430,10.44973852,199.78,199.77,0.03]
[1756564910738,13.06281688,199.78,199.77,0.03]
[1756564911248,51.22281688,199.78,199.77,0.03]
[1756564912422,51.92281688,199.78,199.77,0.03]
[1756564912740,51.22281688,199.78,199.77,0.03]
[1756564913550,55.43131292,199.78,199.77,0.03]
[1756564916903,16.57131292,199.78,199.77,0.03]
[1756564917134,55.43131292,199.78,199.77,0.03]
[1756564917368,50.42580687,199.78,199.77,0.71]
[1756564917776,55.43131292,199.78,199.77,0.71]
[1756564918071,55.43131292,199.78,199.77,0.03]
[1756564920232,11.82708045,199.78,199.77,0.03]
[1756564920458,4.74423247,199.78,199.77,0.71]
[1756564920839,54.25382857,199.78,199.77,0.03]
[1756564921170,50.01533253,199.78,199.77,0.03]
[1756564921531,49.34533253,199.78,199.77,0.03]
[1756564922055,50.01533253,199.78,199.77,0.03]
[1756564924664,55.61275484,199.78,199.77,0.03]
[1756564926760,88.20533253,199.78,199.77,0.03]
[1756564929257,94.47275484,199.78,199.77,0.03]
[1756564929564,13.59559401,199.77,199.76,0.03]
[1756564929753,23.95649775,199.77,199.76,0.03]
[1756564930070,19.21226528,199.77,199.76,0.03]
[1756564930244,23.95649775,199.77,199.76,0.03]
[1756564930566,24.62649775,199.77,199.76,0.03]
[1756564931369,29.63225437,199.77,199.76,0.03]
[1756564932199,28.96225437,199.77,199.76,0.03]
[1756564932897,29.63225437,199.77,199.76,0.03]
[1756564933200,28.96225437,199.77,199.76,0.03]
[1756564933576,23.3455831,199.77,199.76,0.03]
[1756564934481,62.2055831,199.77,199.76,0.71]
[1756564936205,13.59559401,199.77,199.76,0.71]
[1756564936420,62.2055831,199.77,199.76,0.71]
[1756564937399,62.2055831,199.77,199.76,0.03]
[1756564938597,67.82225437,199.77,199.76,0.03]
[1756564939700,67.82225437,199.77,199.76,0.71]
[1756564940901,62.81649775,199.77,199.76,0.71]
[1756564941206,65.42932152,199.77,199.76,0.71]
[1756564941410,70.43507814,199.77,199.76,0.71]
[1756564941615,64.81840687,199.77,199.76,0.71]
[1756564943409,90.81840687,199.77,199.76,0.71]
[1756564945095,86.0741744,199.77,199.76,0.71]
[1756564945304,90.81840687,199.77,199.76,0.71]
[1756564945899,90.81840687,199.77,199.76,0.03]
[1756564946304,91.48840687,199.77,199.76,0.03]
[1756564946507,90.81840687,199.77,199.76,0.03]
[1756564947008,85.81265025,199.77,199.76,0.03]
[1756564948010,90.81840687,199.77,199.76,0.03]
[1756564951490,65.48840687,199.77,199.76,0.03]
[1756564951806,18.33982648,199.76,199.75,0.03]
[1756564952188,19.00982648,199.76,199.75,0.03]
[1756564952389,21.01780848,199.76,199.75,0.03]
[1756564953111,24.72413976,199.76,199.75,0.03]
[1756564953424,29.46837223,199.76,199.75,0.03]
[1756564953711,34.47437943,199.76,199.75,0.03]
[1756564954898,38.5839619,199.76,199.75,0.03]
[1756564955100,13.59559401,199.75,199.73,0.03]
[1756564955316,44.33982648,199.73,199.72,0.03]
[1756564955616,83.19982648,199.73,199.72,0.03]
[1756564955797,88.23889648,199.73,199.72,0.03]
[1756564956497,93.2456556,199.73,199.72,0.03]
[1756564959017,93.9156556,199.73,199.72,0.03]
[1756564960923,102.36454752,199.73,199.72,0.03]
[1756564961497,104.97856236,199.73,199.72,0.03]
[1756564962721,95.85967044,199.73,199.72,0.03]
[1756564963198,56.99967044,199.73,199.72,0.03]
[1756564963400,95.85967044,199.73,199.72,0.03]
[1756564964920,56.99967044,199.73,199.72,0.03]
[1756564965120,95.85967044,199.73,199.72,0.03]
[1756564966526,95.85967044,199.73,199.72,5.03]
[1756564967928,98.47932034,199.73,199.72,5.03]
[1756564971529,98.45932034,199.73,199.72,5.03]
[1756564972427,99.12932034,199.73,199.72,5.03]
[1756564974533,98.45932034,199.73,199.72,5.03]
[1756564976532,93.71508787,199.73,199.72,5.03]
[1756564976836,98.45932034,199.73,199.72,5.03]
[1756564977230,23.86832875,199.73,199.72,5.69]
[1756564977416,23.57349122,199.73,199.72,5.69]
[1756564977619,49.57349122,199.73,199.72,5.69]
[1756564978421,54.58025034,199.73,199.72,5.69]
[1756564982943,49.83601787,199.73,199.72,5.69]
[1756564983131,54.58025034,199.73,199.72,5.69]
[1756564983547,93.42025034,199.73,199.72,5.69]
[1756564984539,54.58025034,199.73,199.72,5.69]
[1756564984735,88.41349122,199.73,199.72,5.69]
[1756564984929,85.79384132,199.73,199.72,5.69]
[1756564985240,20.42755444,199.73,199.72,5.69]
[1756564985633,16.20960885,199.73,199.72,5.69]
[1756564986850,2.67401484,199.73,199.72,5.69]
[1756564990533,26.02060044,199.73,199.72,5.03]
[1756564990743,65.55060044,199.73,199.72,5.03]
[1756564990946,70.58060044,199.73,199.72,5.03]
[1756564994352,69.87060044,199.73,199.72,5.03]
[1756564994534,42.26960885,199.73,199.72,5.72]
[1756564994735,47.01384132,199.73,199.72,5.72]
[1756564996555,47.01384132,199.73,199.72,5.03]
[1756564996935,85.83384132,199.73,199.72,5.03]
[1756564997645,90.84060044,199.73,199.72,5.72]
[1756564997949,64.84060044,199.73,199.72,5.03]
[1756564998261,65.55060044,199.73,199.72,5.03]
[1756564998851,70.58060044,199.73,199.72,5.03]
[1756565000455,76.20638105,199.73,199.72,5.03]
[1756565000647,70.58060044,199.73,199.72,5.03]
[1756565001153,69.87060044,199.73,199.72,5.03]
[1756565001532,31.05060044,199.73,199.72,5.72]
[1756565001754,75.49639797,199.73,199.72,5.72]
[1756565001955,75.49639797,199.73,199.72,5.03]
[1756565002162,69.87060044,199.73,199.72,5.03]
[1756565003467,75.49658659,199.73,199.72,5.03]
[1756565004455,75.49658659,199.73,199.72,5.72]
[1756565004846,69.87060044,199.73,199.72,5.72]
[1756565005642,73.62107704,199.73,199.72,1.95728409]
[1756565006042,69.08286996,199.73,199.72,1.95728409]
[1756565006757,74.08962908,199.73,199.72,1.95728409]
[1756565009368,64.33863749,199.73,199.72,1.95728409]
[1756565009545,69.08286996,199.73,199.72,1.95728409]
[1756565010467,11.92304348,199.73,199.72,6.9642939]
[1756565010667,0.06,199.73,199.72,11.70852637]
[1756565011370,0.06,199.73,199.72,13.71600437]
[1756565012251,0.06,199.73,199.72,8.9717719]
[1756565012653,0.06,199.73,199.72,3.96476209]
[1756565013667,0.06,199.73,199.72,8.9717719]
[1756565014676,0.06,199.73,199.72,13.71600437]
[1756565015580,0.06,199.73,199.72,1.95728409]
[1756565017100,0.06,199.75,199.72,11.70851543]
[1756565017285,0.06,199.75,199.74,4.74423247]
[1756565017671,0.06,199.75,199.74,5.40423247]
[1756565019079,0.06,199.75,199.74,7.41130747]
[1756565019277,0.06,199.75,199.74,12.41781593]
[1756565020788,0.06,199.77,199.76,26.0]
[1756565020994,0.06,199.77,199.76,30.74423247]
[1756565021193,0.06,199.77,199.76,31.40423247]
[1756565021394,0.06,199.77,199.76,33.41090447]
[1756565022277,0.06,199.77,199.76,38.41691167]
[1756565023071,0.06,199.8,199.77,13.59559401]
[1756565023272,0.06,199.81,199.79,35.48846494]
[1756565023482,0.06,199.81,199.8,48.64846494]
[1756565023696,0.06,199.81,199.8,173.31463394]
[1756565024269,0.06,199.81,199.8,178.31963894]
[1756565025079,1e-08,199.84,199.83,39.59559401]
[1756565025281,1e-08,199.84,199.83,44.33982648]
[1756565025477,0.06,199.87,199.86,4.74423247]
[1756565025702,0.06,199.87,199.86,44.04423247]
[1756565026004,0.06,199.87,199.86,44.70423247]
[1756565026196,0.06,199.87,199.86,49.44846447]
[1756565026395,0.06,199.87,199.86,54.45196692]
[1756565026998,13.59559401,199.99,199.88,26.0]
[1756565027198,0.1,199.97,199.96,4.74423247]
[1756565027579,0.1,199.97,199.95,0.66]
[1756565027783,0.1,199.97,199.96,4.74423247]
[1756565028194,0.1,199.97,199.96,0.66]
[1756565028397,0.1,199.97,199.95,4.74423247]
[1756565028592,0.1,199.97,199.95,5.40423247]
[1756565028800,0.1,199.97,199.96,4.74423247]
[1756565029192,0.1,199.97,199.95,5.40423247]
[1756565030102,0.1,199.97,199.95,4.74423247]
[1756565030486,0.1,199.97,199.95,5.40423247]
[1756565032606,0.1,199.97,199.95,0.66]
[1756565033196,0.1,199.97,199.94,15.039478]
[1756565033197,44.43982648,199.97,199.94,15.039478]
[1756565033414,0.69,199.96,199.91,4.74423247]
[1756565033604,0.69,199.96,199.81,20.0]
[1756565033605,26.0,199.95,199.89,15.041741]
[1756565033921,4.74423247,199.91,199.87,0.66]
[1756565034131,0.69,199.94,199.87,0.66]
[1756565034286,4.74423247,199.92,199.87,5.40423247]
[1756565034597,0.69,199.93,199.87,5.40423247]
[1756565034796,4.74423247,199.92,199.87,5.40423247]
[1756565035311,4.74423247,199.91,199.87,0.66]
[1756565036010,4.74423247,199.91,199.87,5.66314273]
[1756565036815,4.74423247,199.9,199.87,5.66314273]
[1756565037116,4.74423247,199.89,199.85,5.001602]
[1756565037412,4.74423247,199.89,199.82,12.51117402]
[1756565037413,4.74423247,199.88,199.84,0.66]
[1756565037591,4.74423247,199.88,199.85,0.66]
[1756565037793,13.59559401,199.93,199.85,0.66]
[1756565037794,4.21902864,199.98,199.88,26.0]
[1756565037988,4.74423247,200.0,199.93,4.74423247]
[1756565038287,4.74423247,200.0,199.94,5.40423247]
[1756565038498,4.74423247,199.99,199.94,5.40423247]
[1756565038810,4.74423247,199.99,199.95,0.66]
[1756565039110,30.74423247,199.99,199.96,0.66]
[1756565039688,4.84423247,199.97,199.93,39.74]
[1756565040011,0.1,199.97,199.94,0.66]
[1756565040804,4.84423247,199.97,199.94,0.66]
[1756565041189,5.43423247,199.96,199.91,5.00222717]
[1756565041506,4.84423247,199.97,199.92,0.66]
[1756565041711,4.84423247,199.97,199.93,0.66]
[1756565041897,4.84423247,199.97,199.94,0.66]
[1756565042209,0.1,199.97,199.95,0.66]
[1756565042828,0.1,199.97,199.96,0.66]
[1756565043192,0.1,199.97,199.96,5.6610002]
[1756565043712,0.1,199.97,199.96,25.44169567]
[1756565046695,0.1,199.97,199.96,105.04169567]
[1756565047216,3.29929065,200.06,199.96,105.04169567]
[1756565047217,0.69,200.05,199.96,112.7999637]
[1756565047521,4.74423247,200.04,199.99,4.74423247]
[1756565047720,4.74423247,200.04,200.0,0.66]
[1756565047935,4.74423247,200.03,199.99,0.66]
[1756565048102,4.74423247,200.02,199.99,15.034956]
[1756565048303,5.43423247,200.02,199.99,15.034956]
[1756565048598,0.69,200.01,199.97,39.62]
[1756565048795,5.43423247,200.01,199.98,15.03571]
[1756565049021,5.43423247,200.01,199.97,39.6]
[1756565049231,7.60781776,200.06,199.98,20.03621005]
[1756565049232,4.74423247,200.02,199.98,20.03621005]
[1756565049396,4.74423247,200.02,199.99,0.66]
[1756565049602,4.74423247,200.02,199.98,20.03621005]
[1756565049823,26.0,200.03,199.99,0.66]
[1756565050127,4.74423247,200.02,199.99,0.66]
[1756565050638,30.74423247,200.03,199.99,0.66]
[1756565051339,30.74423247,200.03,199.99,5.66024131]
[1756565052625,31.43423247,200.03,199.99,5.66024131]
[1756565052798,4.74423247,200.02,199.99,0.66]
[1756565053117,4.74423247,200.03,200.0,0.66]
[1756565053432,4.74423247,200.03,199.98,20.03619297]
[1756565053724,26.69,200.05,200.0,0.66]
[1756565053910,4.74423247,200.03,200.0,0.66]
[1756565056027,4.74423247,200.02,199.98,20.03619297]
[1756565056204,4.74423247,200.02,199.99,0.66]
[1756565056702,0.69,200.04,199.99,0.66]
[1756565056915,4.74423247,200.02,199.99,0.66]
[1756565057224,4.74423247,200.03,200.0,0.66]
[1756565058329,0.06,200.02,200.0,0.66]
[1756565058525,0.06,200.02,199.99,9.74425569]
[1756565058716,4.80423247,200.02,199.99,9.74425569]
[1756565059225,0.06,200.02,199.99,4.744233]
[1756565059424,4.74423247,200.0,199.94,44.22423247]
[1756565059599,4.74423247,199.99,199.94,44.22423247]
[1756565059805,4.74423247,199.99,199.96,13.655594]
[1756565060005,4.74423247,199.97,199.94,39.48]
[1756565060328,4.74423247,199.97,199.94,44.48148187]
[1756565060329,5.43423247,199.97,199.94,44.48148187]
[1756565060530,4.74423247,199.99,199.95,0.66]
[1756565060713,4.74423247,199.98,199.95,0.66]
[1756565060921,5.43423247,199.98,199.94,44.48148187]
[1756565061122,4.74423247,199.96,199.91,5.00225101]
[1756565061311,4.74423247,199.94,199.91,5.00225101]
[1756565061846,5.43423247,199.94,199.91,5.00225101]
[1756565062013,5.43423247,199.94,199.9,5.00245419]
[1756565062211,5.43423247,199.94,199.89,44.99423247]
[1756565062212,13.59559401,199.98,199.89,39.59]
[1756565062418,4.74423247,199.94,199.9,0.66]
[1756565062726,0.69,200.0,199.93,4.74423247]
[1756565063027,4.74423247,199.99,199.94,4.74423247]
[1756565063210,4.74423247,199.99,199.94,5.40423247]
[1756565063546,5.43423247,199.99,199.94,5.40423247]
[1756565063752,4.74423247,199.98,199.94,0.66]
[1756565064252,4.74423247,199.98,199.94,5.66127827]
[1756565064942,5.43423247,199.98,199.94,5.00127827]
[1756565065840,7.60943188,200.01,199.93,44.58171098]
[1756565065841,5.43423247,199.97,199.93,44.58171098]
[1756565066137,2.60964831,200.01,199.95,4.74423247]
[1756565066443,7.35388078,200.01,199.96,10.40523267]
[1756565066624,7.35388078,200.01,199.97,0.66]
[1756565067450,8.04388078,200.01,199.97,5.66067863]
[1756565067636,4.74423247,200.0,199.97,5.00067863]
[1756565067832,4.74423247,199.98,199.93,123.92423247]
[1756565068023,4.74423247,199.98,199.94,0.66]
[1756565068221,4.74423247,199.98,199.95,0.66]
[1756565068651,0.69,200.0,199.95,0.66]
[1756565068831,4.74423247,199.98,199.95,0.66]
[1756565069339,0.06,200.02,199.97,4.74423247]
[1756565069539,0.06,200.02,199.98,10.40473252]
[1756565070060,0.06,200.02,199.99,0.66]
[1756565071542,0.06,200.02,200.0,5.0]
[1756565072139,0.06,200.02,199.98,5.0003446]
[1756565072329,0.73,200.02,199.98,5.0003446]
[1756565072756,4.80423247,200.02,199.98,5.7103446]
[1756565072950,0.06,200.02,199.98,5.7103446]
[1756565074859,4.80423247,200.02,199.98,5.7103446]
[1756565075555,0.73,200.02,199.98,5.7103446]
[1756565075760,5.47423247,200.02,199.98,5.7103446]
[1756565075940,4.74423247,200.01,199.98,5.0003446]
[1756565077134,4.74423247,200.01,199.98,5.7103446]
[1756565077661,4.80423247,200.02,199.98,5.7103446]
[1756565077952,5.47423247,200.02,199.98,5.7103446]
[1756565078255,4.74423247,200.0,199.97,0.03]
[1756565078470,4.74423247,200.0,199.97,0.74]
[1756565078962,5.41423247,200.0,199.97,0.03]
[1756565079159,4.74423247,199.99,199.97,0.03]
[1756565079363,4.74423247,199.98,199.97,0.03]
[1756565080661,36.41473252,199.98,199.97,0.03]
[1756565081360,50.01032653,199.98,199.97,0.03]
[1756565081560,54.20732657,199.98,199.95,0.03]
[1756565081867,18.33982648,199.96,199.95,0.03]
[1756565082266,27.53782672,199.96,199.95,0.03]
[1756565082471,28.20782672,199.96,199.95,0.03]
[1756565084274,26.0,199.9,199.89,0.03]
[1756565084579,30.74423247,199.9,199.89,0.03]
[1756565084875,31.41423247,199.9,199.89,0.03]
[1756565086156,36.41673372,199.9,199.89,0.03]
[1756565086759,54.7565602,199.9,199.89,0.03]
[1756565088776,45.26809526,199.9,199.89,0.03]